Cogmind - Beta 13 @@@ ROGUE MODE // 2024.04.08 @ 20:06:48 Player: chexo4 Result: Self-destructed Performance ------------- Evolutions (1) 500 Regions Visited (4) 800 Robots Destroyed (29) 145 Value Destroyed (562) 562 Prototype IDs (3) 60 Alien Tech Used (0) 0 Bonus (0) 0 TOTAL SCORE: 2067 Bonus ------- None Cogmind --------- Core Integrity 74/400 Matter 270/300 Energy 102/125 System Corruption 0% Temperature Cool (0) Movement Walking (120) Location -9/Storage Parts ------- > --- POWER (1) -------- Light Ion Engine > --- PROPULSION (4) --- Improved Aluminum Leg Carbon-fiber Leg Armored Wheel > --- UTILITY (2) ------ Large Storage Unit Advanced Weight Redist. System > --- WEAPON (2) ------- Beam Cannon Mining Claw > --- INVENTORY (15) --- Heavy Ion Engine Compact Battery (200) Compact Matter Pod (150) Seismic Detector ECM Suite Propulsion Shielding Improved Light Armor Plating EM Pulse Gun Beam Rifle Light Assault Rifle Heavy Assault Rifle Grenade Launcher Mining Laser Heavy Mace Peak State ------------ > --- POWER ------------ Light Ion Engine > --- PROPULSION ------- Carbon-fiber Leg Carbon-fiber Leg Carbon-fiber Leg Carbon-fiber Leg > --- UTILITY ---------- Large Storage Unit > --- WEAPON ----------- Beam Rifle Heavy Mace > --- INVENTORY -------- Improved Aluminum Leg Compact Wheel Armored Wheel Compact Battery Compact Matter Pod Advanced Weight Redist. System Seismic Detector ECM Suite Propulsion Shielding Improved Light Armor Plating EM Pulse Gun Beam Cannon Light Assault Rifle Mining Laser [Rating: 21] Favorites ----------- Power Light Ion Engine Engine Light Ion Engine Propulsion Improved Aluminum Leg Leg Improved Aluminum Leg Wheel Compact Wheel Utility Large Storage Unit Device Seismic Detector Storage Large Storage Unit Weapon Light Assault Rifle Energy Gun Medium Laser Energy Cannon Beam Cannon Ballistic Gun Light Assault Rifle Special Weapon Mining Laser Impact Weapon Heavy Mace Slashing Weapon Mining Claw Build | -11 -10 -10 -9 -9 ------- Run | Yrd Mat Min Mat Sto Slots Evolved 2 | . . . 2 . Power . | . . . . . Propulsion 2 | . . . 2 . Utility . | . . . . . Weapon . | . . . . . Parts Attached 40 | 7 4 6 20 3 Power 6 | 1 . 1 2 2 Engine 6 | 1 . 1 2 2 Core . | . . . . . Reactor . | . . . . . Propulsion 17 | 2 . 3 12 . Treads . | . . . . . Leg 10 | . . . 10 . Wheel 7 | 2 . 3 2 . Hover . | . . . . . Flight . | . . . . . Utility 5 | 2 1 1 1 . Device 3 | 1 . 1 1 . Storage 2 | 1 1 . . . Processor . | . . . . . Hackware . | . . . . . Protection . | . . . . . Artifact . | . . . . . Weapon 12 | 2 3 1 5 1 Energy Gun 4 | 1 2 . 1 . Energy Cannon 1 | . . . 1 . Ballistic Gun 4 | 1 1 1 1 . Ballistic Cannon . | . . . . . Launcher . | . . . . . Special Weapon 1 | . . . 1 . Impact Weapon 1 | . . . 1 . Slashing Weapon 1 | . . . . 1 Piercing Weapon . | . . . . . Special Melee Weapon . | . . . . . Unidentified Prototypes 1 | . . . . 1 Parts Lost 9 | . . 2 7 . Power 1 | . . . 1 . Propulsion 5 | . . 1 4 . Utility 1 | . . . 1 . Weapon 2 | . . 1 1 . Highest Loss Streak 3 | . . 1 3 . To Critical Strikes . | . . . . . Average Slot Usage (%) 93 | . 99 96 90 88 Engine 11 | . 14 14 9 11 Leg 20 | . . . 33 22 Wheel 13 | . 28 25 5 11 Device 10 | . 14 14 8 11 Storage 12 | . 14 14 11 11 Energy Gun 6 | . 13 12 2 . Energy Cannon 3 | . . . 5 11 Ballistic Gun 11 | . 13 14 10 4 Impact Weapon 1 | . . . 3 . Naked Turns . | . . . . . Heaviest Build 29 | 12 27 27 29 29 Greatest Support 60 | 26 26 32 60 37 Greatest Overweight (x) 2 | . 1 1 2 . Average Overweight (x) . | . . . . . Largest Inventory Capacity 15 | 8 15 15 15 15 Average Capacity 14 | 7 14 15 15 15 Most Carried 15 | 6 14 15 15 15 Average Carried 12 | 4 9 14 13 13 Final Capacity 15 | 8 15 15 15 15 Final Carried 15 | 6 14 15 13 14 Class Distribution -------------------- 100% | Mutant Dominant Class ---------------- Mutant | -10/Materials Mutant | -10/Mines Mutant | -9/Materials Mutant | -9/Storage Resources | -11 -10 -10 -9 -9 ----------- Run | Yrd Mat Min Mat Sto Matter Collected 765 | 274 57 159 275 . Remotely . | . . . . . Salvage Created 905 | 123 127 171 484 . Parts 60 | 13 13 17 17 . Haulers Intercepted . | . . . . . Recyclers Shooed 3 | 1 1 1 . . Parts Field Recycled . | . . . . . Retrieved Matter . | . . . . . Parts Self-Destructed . | . . . . . Prevented . | . . . . . Kills | -11 -10 -10 -9 -9 ------- Run | Yrd Mat Min Mat Sto Combat Hostiles Destroyed 22 | . 5 5 12 . Guns 16 | . 5 5 6 . Cannons 4 | . . . 4 . Classes Destroyed 5 | 2 2 . 1 . Tunneler 4 | 3 . 1 . . Recycler 3 | 1 . 1 1 . Swarmer 12 | . 3 5 4 . Grunt 7 | . 2 . 5 . Sentry 3 | . . . 3 . Best Kill Streak 4 | 2 4 3 4 . Combat Bots Only 4 | . 4 2 3 . Max Kills in Single Turn 2 | 1 1 2 2 . Gunslinging . | . . . . . Exploded . | . . . . . Melee . | . . . . . Uniques/NPCs Destroyed . | . . . . . Combat | -11 -10 -10 -9 -9 -------- Run | Yrd Mat Min Mat Sto Hostile Shots Fired 163 | . 20 22 119 2 Missed 36 | . 6 7 23 . Damage Taken 1570 | . 163 123 1257 27 Core 402 | . 42 34 326 . Absorbed by Shields . | . . . . . Core Remaining (%) 84 | 100 . 69 . . Volleys Fired 91 | 8 13 12 58 . Largest 2 | 2 2 2 2 . Hottest 100 | 70 70 70 100 . Shots Fired 151 | 16 26 22 87 . Gun 126 | 16 26 22 62 . Cannon 16 | . . . 16 . Launcher . | . . . . . Special 9 | . . . 9 . Kinetic 66 | 8 13 12 33 . Thermal 85 | 8 13 10 54 . Explosive . | . . . . . Electromagnetic . | . . . . . Robot Hit Streak 11 | 6 8 5 11 . Robot Miss Streak 3 | 1 3 1 3 . Penetration Max . | . . . . . Secondary Targets . | . . . . . Shots Hit Robots 108 | 11 14 14 69 . Core Hits 41 | 6 8 8 19 . Critical Kills . | . . . . . Critical Parts Destroyed 2 | . . . 2 . Critical Strikes 4 | . . . 4 . Burn 2 | . . . 2 . Smash 2 | . . . 2 . Melee Attacks 14 | . . . 12 2 Impact 12 | . . . 12 . Slashing 2 | . . . . 2 Piercing . | . . . . . Sneak Attacks . | . . . . . Combat Hostiles . | . . . . . Follow-up Attacks . | . . . . . Damage Inflicted 1476 | 115 155 168 1038 . Guns 959 | 115 155 168 521 . Cannons 213 | . . . 213 . Explosions . | . . . . . Melee 304 | . . . 304 . Ramming . | . . . . . Kinetic 349 | 39 68 68 174 . Thermal 823 | 76 87 100 560 . Explosive . | . . . . . Electromagnetic . | . . . . . Impact 304 | . . . 304 . Slashing . | . . . . . Piercing . | . . . . . Highest Corruption . | . . . . . Average Corruption . | . . . . . Corruption Purged . | . . . . . Corruption Blocked . | . . . . . Overload Shots . | . . . . . Overflow Damage 100 | . . . 100 . Projectiles . | . . . . . Explosions . | . . . . . Melee 100 | . . . 100 . Knockbacks . | . . . . . Impact . | . . . . . Kinetic . | . . . . . Secondary . | . . . . . Self-Inflicted Damage . | . . . . . Shots . | . . . . . Rammed . | . . . . . Targets Rammed . | . . . . . Kicked . | . . . . . Crushed . | . . . . . Highest Temperature 255 | 60 230 70 255 . Average Temperature 66 | 26 103 31 68 . Received Heat Transfer 528 | . 60 . 459 9 Effects 4 | . . . 4 . Energy Bleed 1 | . . . 1 . Interference 3 | . . . 3 . Siege Activations . | . . . . . Robots Corrupted . | . . . . . Combat Hostiles . | . . . . . Parts Fried 2 | . . . 2 . Impact Corruptions 4 | . . . 4 . Robots Melted . | . . . . . Combat Hostiles . | . . . . . Parts Melted 2 | . . . 2 . Heat Transferred 2257 | 222 259 296 1480 . Parts Sabotaged . | . . . . . Parts Stolen . | . . . . . Parts Stripped . | . . . . . Power Chain Reactions . | . . . . . Alert | -11 -10 -10 -9 -9 ------- Run | Yrd Mat Min Mat Sto Peak Influence 265 | 20 172 181 265 84 Initial 70 | . 13 66 70 54 Average 113 | 9 93 140 127 62 Maximum Alert Level 1 | . . . 1 . Low Security (%) 91 | 100 100 100 84 100 Level 1 8 | . . . 15 . Level 2 . | . . . . . Level 3 . | . . . . . Level 4 . | . . . . . Level 5 . | . . . . . High Security . | . . . . . Max Security . | . . . . . Squads Dispatched 5 | . . 1 4 . Investigation 2 | . . 1 1 . Extermination . | . . . . . Reinforcement 3 | . . . 3 . Assault . | . . . . . Garrison . | . . . . . Intercept . | . . . . . Searches Triggered . | . . . . . Construction Impeded . | . . . . . Haulers Reinforced . | . . . . . Active Scanning Responses . | . . . . . Cargo Convoy Interrupts . | . . . . . Stealth | -11 -10 -10 -9 -9 --------- Run | Yrd Mat Min Mat Sto Distress Signals 1 | . . . 1 . Communications Jammed . | . . . . . Distress Signals . | . . . . . Times Spotted 34 | . 6 6 21 1 Peak Tracking Total 6 | . 6 3 5 . Tactical Retreats 3 | . 1 1 1 . Traps | -11 -10 -10 -9 -9 ------- Run | Yrd Mat Min Mat Sto Traps Triggered 1 | . 1 . . . Indirectly . | . . . . . Trap Hack Attempts . | . . . . . Triggered . | . . . . . Disarmed . | . . . . . Reprogrammed . | . . . . . Reused . | . . . . . Traps Extracted . | . . . . . Installed . | . . . . . Triggered . | . . . . . Machines | -11 -10 -10 -9 -9 ---------- Run | Yrd Mat Min Mat Sto Machines Disabled 1 | . . . . 1 Max in Single Turn 1 | . . . . 1 Machines Repaired . | . . . . . Machines Dismantled . | . . . . . Machines Sabotaged . | . . . . . Overloaded Fab Kills . | . . . . . Hacking | -11 -10 -10 -9 -9 --------- Run | Yrd Mat Min Mat Sto Machines Accessed 6 | . 3 1 2 . Terminals 5 | . 3 . 2 . Fabricators . | . . . . . Repair Stations . | . . . . . Recycling Units . | . . . . . Scanalyzers . | . . . . . Garrison Access . | . . . . . Total Hacks 15 | . 10 1 4 . Successful 10 | . 6 1 3 . Failed 5 | . 4 . 1 . Catastrophic 2 | . 1 . 1 . Database Lockouts . | . . . . . Manual 9 | . 5 . 4 . Terminals 14 | . 10 . 4 . Fabricators . | . . . . . Repair Stations . | . . . . . Recycling Units . | . . . . . Scanalyzers . | . . . . . Garrison Access . | . . . . . Terminal Hacks 10 | . 6 1 3 . Robot Analysis 1 | . 1 . . . Prototype ID Bank 1 | . 1 . . . Open Door 1 | . . 1 . . Branch Access Points 2 | . 1 . 1 . Terminal Index 2 | . 1 . 1 . Zone Layout 3 | . 2 . 1 . Fabricator Hacks . | . . . . . Repair Station Hacks . | . . . . . Recycling Unit Hacks . | . . . . . Scanalyzer . | . . . . . Garrison Access Hacks . | . . . . . Unauthorized Hacks . | . . . . . Terminals . | . . . . . Fabricators . | . . . . . Repair Stations . | . . . . . Recycling Units . | . . . . . Scanalyzers . | . . . . . Garrison Access . | . . . . . Data Cores Recovered . | . . . . . Used . | . . . . . Hacking Detections 4 | . 3 . 1 . Full Trace Events 4 | . 3 . 1 . Feedback Events . | . . . . . Feedback Blocked . | . . . . . Robot Schematics Acquired . | . . . . . Robots Built . | . . . . . Authchips . | . . . . . Time . | . . . . . Total Robot Build Rating . | . . . . . Part Schematics Acquired . | . . . . . Parts Built . | . . . . . Authchips . | . . . . . Time . | . . . . . Total Part Build Rating . | . . . . . Parts Repaired . | . . . . . Time . | . . . . . Parts Recycled . | . . . . . Recycled Matter . | . . . . . Retrieved Matter . | . . . . . Retrieved Components . | . . . . . Parts Scanalyzed . | . . . . . Part Schematics Acquired . | . . . . . Parts Damaged . | . . . . . Bothacking | -11 -10 -10 -9 -9 ------------ Run | Yrd Mat Min Mat Sto Used RIF Installer . | . . . . . Robots Hacked . | . . . . . Non-combat . | . . . . . Combat . | . . . . . Robot Hacks Applied . | . . . . . Relay Couplers Released . | . . . . . Fabnet Peak Effective % . | . . . . . Robots Rewired . | . . . . . Allies Hacked . | . . . . . Hacks Repelled . | . . . . . Allies | -11 -10 -10 -9 -9 -------- Run | Yrd Mat Min Mat Sto Total Allies . | . . . . . Largest Group . | . . . . . Highest-Rated Group . | . . . . . Highest-Rated Ally . | . . . . . Total Orders . | . . . . . Ally Attacks . | . . . . . Total Damage . | . . . . . Kills . | . . . . . Allies Corrupted . | . . . . . Allies Melted . | . . . . . Intel | -11 -10 -10 -9 -9 ------- Run | Yrd Mat Min Mat Sto Robot Analysis Total 1 | . 1 . . . Derelict Logs Recovered 3 | . . 3 . . Drone Launches . | . . . . . Drone Recoveries . | . . . . . Exploration | -11 -10 -10 -9 -9 ------------- Run | Yrd Mat Min Mat Sto Turns Passed 1888 | 120 328 329 1020 91 Spaces Moved 1268 | 92 233 269 608 66 Core 12 | 12 . . . . Treads . | . . . . . Legs 608 | . . . 542 66 Wheels 648 | 80 233 269 66 . Hover . | . . . . . Flight . | . . . . . Fastest Speed 50 | 50 90 100 95 120 Average Speed 109 | 84 103 102 118 120 Slowest Speed 190 | 90 105 115 190 120 Overloaded Moves . | . . . . . Propulsion Burnouts . | . . . . . Robots Hopped . | . . . . . Cave-ins Triggered . | . . . . . Exploration Rate (%) 31 | 5 40 59 43 12 Regions Visited 4 Branch Regions 2 Pre-discovered Areas 1 | . . 1 . . Known Exits Taken 3 | . 1 1 1 . Unknown Exits Taken 1 | 1 . . . . Scrap Searched . | . . . . . Spaces Dug 9 | . . . 9 . Terrain Destroyed 9 | . . . 9 . Melee . | . . . . . Projectile 9 | . . . 9 . AOE . | . . . . . Terrain Rammed . | . . . . . Walls Destroyed . | . . . . . Machines Disabled . | . . . . . Actions | -11 -10 -10 -9 -9 --------- Run | Yrd Mat Min Mat Sto Total 1580 | 118 296 302 791 73 Wait 118 | . 34 8 76 . Move 1264 | 91 232 268 607 66 Hop . | . . . . . Pick Up 39 | 12 11 5 10 1 Fast Attach 2 | 1 . 1 . . Attach 19 | 6 3 1 8 1 Detach 2 | . 1 . . 1 Swap 19 | . 1 4 12 2 Drop 12 | . 1 3 8 . Fire 91 | 8 13 12 58 . Melee 14 | . . . 12 2 Ram . | . . . . . Kick . | . . . . . Crush . | . . . . . Escape Stasis . | . . . . . Rewire . | . . . . . Trap . | . . . . . Miscellaneous . | . . . . . Route ------- -11/Scrapyard -10/Materials (discovered 2 exits: *Mat / *Min) -10/Mines -9/Materials (discovered 4 exits: Min x2 / *Sto x2) -9/Storage History --------- Turn | Location | Event 5 | -11/Scrapyard | Discovered new exit (range 15) 121 | -11/Scrapyard | Entered Materials 203 | -10/Materials | Identified exit to Mines 307 | -10/Materials | Build established: Mutant 368 | -10/Materials | Discovered new exit (range 5) 449 | -10/Materials | Entered Mines 468 | -10/Mines | Identified exit to Materials 595 | -10/Mines | Learned location of Zion (-7) 609 | -10/Mines | Met a Derelict shopkeep closing up shop 778 | -10/Mines | Entered Materials 778 | -9/Materials | Evolved 2 slots: Propulsion x2 779 | -9/Materials | Identified exit to Storage 1029 | -9/Materials | Identified exit to Mines 1313 | -9/Materials | Core integrity fell below 50% 1357 | -9/Materials | Lost 3 parts (1n1u1w) 1396 | -9/Materials | Lost 3 parts (1p2n) 1486 | -9/Materials | Core integrity fell below 20% 1798 | -9/Materials | Entered Storage 1889 | -9/Storage | Self-destructed Last Messages --------------- Acquired 10 matter. Acquired Mining Claw. Remember there are three different ways to zoom the map: Scroll the mouse wheel while panning the map with Shift, or toggle via 'z' or the ZOOM button over the map. O-16 Technician: "IFF HANDSHAKE FAILED. SECURING TERMINAL." O-16 Technician uses terminal to summon reinforcements. ALERT: Hostiles spotted, dispatching reinforcements to Terminal M001. O-16 Technician locks terminal. ALERT: Hostiles spotted, dispatching reinforcements to Terminal M008. LOCATION=STORAGE GOAL=ESCAPE Storage Shell breached. Acquired Prototype Engine. Identified Hvy. Ion Engine. Map ----- +----------------------------------------------------+ | ?????????????????????????????????????????????????? | | ?????????????????????????????????????????????????? | | ?????????????????????????????????????????????????? | | ?????????????????????????????????????????????????? | | ?????????????????????????????????????????????????? | | ?????????????????????????????????????????????????? | | ?????????????????????????????????????????????????? | | ?????????????????????????????????????????????????? | | ?????????????????????????????????????????????????? | | ?????????????????????????????????????????????????? | | ?????????????????????????????????????????????????? | | ?????????????????????????????????????????????????? | | ?????????????????????????????????????????????????? | | ????????????????????????#T#?###+?????????????????? | | ???????????????????????? ?# ??????????????????? | | ???????????????????#?"" # ??????????????????? | | ???????????????????#""" # """""??????????????? | | ???????????????????#""" # ] ="??????????????? | | ???????????????????# # """""??????????????? | | ???????????????????# " " # """""?????????????? | | ???????????????????# "R" # ][*"?????????????? | | ????????????????????? """ # """"" #???????????? | | ??????????????????????? # #???????????? | | ???????????#+############+######+############????? | | ?????????? #????? | | ?????????? @ #????? | | ?????????? #????? | | ???????????####+#########+############### #????? | | ???????????????????????? ?????????????# #????? | | ???????????????????????? ?????????????# #????? | | ??????????????????????? "????????????# #????? | | ??????????????????????? "????????????# #????? | | ?????????????????????? ???????????# #????? | | ?????????????????????? ???????????# #????? | | ?????????????????????# ??????????#####????? | | ?????????????????????# "T" ???????????????????? | | ?????????????????????# """ ???????????????????? | | ?????????????????????###### ##???????????????????? | | ???????????????????????????##????????????????????? | | ?????????????????????????????????????????????????? | | ?????????????????????????????????????????????????? | | | | | | | | | | | | | | | | | | | +----------------------------------------------------+ Best States ------------- Heat Dissipation 28 Energy Generation 10 Energy Capacity 125 Matter Stores 300 Matter Capacity 300 Sight Range 16 Terrain Scan Density 10 Additional Mass Support 9 Evasion (%) 55 Item Schematics ----------------- None Robot Schematics ------------------ None Fabricated ------------ Nothing Alien Tech Used ----------------- None Achievements -------------- None Challenges ------------ None Game ------ Seed BladeSpectralMicroactuators Manual? 0 Play Time 00:16:37 Cumulative 16.8 hours Start 2024.04.08 @ 19:50:55 End 2024.04.08 @ 20:06:48 Sessions 1 Manual Loads 0 Difficulty Rogue Special Mode None Game No. 49 Rogue 49 Adventurer 0 Explorer 0 Win Type - Total 0 Types 0/0/0/0/0/0/0/0/0 Lore% 17 Gallery% 26 Achievement% 21 Wizard Run 0 Options --------- Layout 1 ASCII 0 Keyboard 0 Movement Arrows Keybinds 0 Fullscreen 2 Font 24/Smallcaps Map View 50x35 Zoom Use 0% Tactical HUD 0 Map Filters NONE Filters NONE Steam 1 RUN: 5bd54782-0e28-4366-a8ad-c5523205ffbf